bitfinex/quotes_BTCUSD_20241004
["timestamp","ask_amount","ask_price","bid_price","bid_amount"]
[1728019766078,0.03492065,61305.0,61304.0,0.41541399]
[1728019767177,0.000819,61305.0,61304.0,0.41541399]
[1728019767607,0.03493838,61305.0,61304.0,0.41541399]
[1728019767814,0.06050707,61305.0,61304.0,0.41541399]
[1728019768416,0.04365382,61305.0,61304.0,0.41541399]
[1728019768696,0.04324569,61305.0,61304.0,0.5130679]
[1728019768908,0.06051144,61305.0,61304.0,0.5130679]
[1728019769142,0.04324569,61305.0,61304.0,0.4970679]
[1728019769343,0.06051143,61305.0,61304.0,0.4970679]
[1728019769653,0.06051143,61305.0,61304.0,0.39515366]
[1728019771516,0.04365343,61305.0,61304.0,0.39515366]
[1728019771982,0.04363866,61305.0,61304.0,0.39515366]
[1728019775620,0.06048403,61305.0,61304.0,0.39515366]
[1728019776090,0.06048403,61305.0,61304.0,0.39512428]
[1728019776587,0.04363866,61305.0,61304.0,0.39512428]
[1728019777484,0.06051955,61305.0,61304.0,0.39512428]
[1728019778345,0.04363866,61305.0,61304.0,0.59063041]
[1728019779059,0.04366495,61305.0,61304.0,0.59063041]
[1728019779477,0.04366495,61305.0,61304.0,0.61763041]
[1728019779478,0.04566495,61305.0,61304.0,0.61763041]
[1728019779919,0.04466495,61305.0,61304.0,0.60463041]
[1728019780180,0.04566495,61305.0,61304.0,0.61763041]
[1728019780901,0.04566495,61305.0,61304.0,0.49559975]
[1728019781124,0.04566495,61305.0,61304.0,0.6176095]
[1728019781818,0.02838769,61305.0,61304.0,0.6176095]
[1728019782059,0.04566415,61305.0,61304.0,0.49559975]
[1728019784137,0.04566415,61305.0,61304.0,0.61761081]
[1728019784633,0.06256547,61305.0,61304.0,0.49559975]
[1728019784878,0.06256547,61305.0,61304.0,0.40419975]
[1728019785354,0.06265321,61305.0,61304.0,0.50180985]
[1728019785816,0.06265321,61305.0,61304.0,0.40419975]
[1728019786044,0.06265321,61305.0,61304.0,0.50181455]
[1728019787511,0.06265321,61305.0,61304.0,0.40419975]
[1728019789203,0.04532717,61305.0,61304.0,0.40419975]
[1728019789441,0.06263301,61305.0,61304.0,0.40419975]
[1728019792361,0.06260948,61305.0,61304.0,0.40419975]
[1728019794996,0.06260948,61305.0,61304.0,0.19986169]
[1728019795227,0.06260948,61305.0,61304.0,0.27312041]
[1728019795468,0.04528287,61305.0,61304.0,0.19986169]
[1728019795712,0.06258755,61305.0,61304.0,0.19986169]
[1728019796638,0.06258755,61305.0,61304.0,0.27311718]
[1728019797100,0.06258755,61305.0,61304.0,0.27311691]
[1728019800629,0.06258755,61305.0,61304.0,0.39775989]
[1728019801392,0.06251545,61305.0,61304.0,0.32449975]
[1728019802100,0.06251545,61305.0,61304.0,0.39775669]
[1728019802552,0.04566259,61305.0,61304.0,0.39775669]
[1728019803538,0.04566259,61305.0,61304.0,0.32449975]
[1728019804810,0.02838769,61305.0,61304.0,0.32449975]
[1728019804845,0.02838769,61305.0,61304.0,0.19986169]
[1728019805085,0.04564609,61305.0,61304.0,0.2731277]
[1728019805818,0.06255944,61305.0,61304.0,0.2731277]
[1728019807258,0.03699075,61305.0,61304.0,0.2731277]
[1728019807720,0.03696934,61305.0,61304.0,0.2731277]
[1728019807951,0.03696934,61305.0,61304.0,0.19986169]
[1728019810953,0.01971094,61305.0,61304.0,0.19986169]
[1728019811221,0.21281976,61305.0,61304.0,0.191757]
[1728019811445,0.21281976,61305.0,61304.0,0.17276448]
[1728019811667,0.21277058,61305.0,61304.0,0.17276448]
[1728019812384,0.21077058,61305.0,61304.0,0.163121]
[1728019812888,0.21177058,61305.0,61304.0,0.174121]
[1728019813355,0.21077058,61305.0,61304.0,0.167121]
[1728019813810,0.21077058,61305.0,61304.0,0.171121]
[1728019814259,0.11623104,61305.0,61304.0,0.171121]
[1728019814521,0.03498722,61305.0,61304.0,0.171121]
[1728019814717,0.06055881,61305.0,61304.0,0.171121]
[1728019815423,0.06055881,61305.0,61304.0,0.18334755]
[1728019817652,0.06058806,61305.0,61304.0,0.18334755]
[1728019817867,0.04328021,61305.0,61304.0,0.18334755]
[1728019818091,0.06058709,61305.0,61304.0,0.18660969]
[1728019818344,0.06058709,61305.0,61304.0,0.27914755]
[1728019819898,0.0350155,61305.0,61304.0,0.27914755]
[1728019821085,0.03499781,61305.0,61304.0,0.27914755]
[1728019822919,0.03499781,61305.0,61304.0,0.28078555]
[1728019823322,0.06056754,61305.0,61304.0,0.28078555]
[1728019824202,0.04368131,61305.0,61304.0,0.28078555]
[1728019824428,0.03499749,61305.0,61304.0,0.28078555]
[1728019828035,0.03493947,61305.0,61304.0,0.28078555]
[1728019830526,0.06050922,61305.0,61304.0,0.28078555]
[1728019831913,0.03493947,61305.0,61304.0,0.28078555]
[1728019834063,0.000819,61305.0,61304.0,0.28078555]
[1728019834318,0.03492805,61305.0,61304.0,0.28078555]
[1728019835282,0.06049791,61305.0,61304.0,0.28078555]
[1728019835752,0.04365342,61305.0,61304.0,0.18498555]
[1728019837367,0.04364964,61305.0,61304.0,0.18498555]
[1728019837856,0.06048626,61305.0,61304.0,0.18498555]
[1728019840530,0.02638886,61305.0,61304.0,0.18498555]
[1728019840801,0.06060505,61305.0,61304.0,0.18498555]
[1728019841487,0.15740505,61305.0,61304.0,0.1684913]
[1728019841714,0.14050447,61305.0,61304.0,0.1684913]
[1728019842170,0.14050447,61305.0,61304.0,0.15212402]
[1728019843289,0.14039448,61305.0,61304.0,0.15212402]
[1728019843506,0.11482462,61305.0,61304.0,0.15212402]
[1728019843734,0.1148246,61305.0,61304.0,0.15212402]
[1728019843953,0.0180246,61305.0,61304.0,0.15212402]
[1728019846927,0.04359505,61305.0,61304.0,0.15212402]
[1728019848038,0.0180246,61305.0,61304.0,0.15212402]
[1728019849229,0.0965246,61305.0,61304.0,0.15212402]
[1728019850972,0.0180246,61305.0,61304.0,0.15212402]
[1728019860328,0.04349682,61305.0,61304.0,0.15212402]
[1728019861678,0.01792573,61305.0,61304.0,0.15212402]
[1728019865737,0.01790636,61305.0,61304.0,0.15212402]
[1728019868944,0.03502008,61305.0,61304.0,0.15212402]
[1728019869176,0.06059171,61305.0,61304.0,0.14812402]
[1728019869393,0.06059171,61305.0,61304.0,0.15012402]
[1728019869637,0.06059171,61305.0,61304.0,0.14612402]
[1728019870120,0.06059171,61305.0,61304.0,0.14912402]
[1728019871508,0.06059171,61305.0,61304.0,0.01886455]
[1728019872260,0.04361438,61305.0,61304.0,0.01886455]
[1728019872506,0.06057892,61305.0,61304.0,0.18198555]
[1728019873716,0.03500729,61305.0,61304.0,0.18198555]
[1728019875325,0.0350044,61305.0,61304.0,0.18198555]
[1728019877711,0.0350044,61305.0,61304.0,0.17898555]
[1728019877964,0.0350044,61305.0,61304.0,0.17698555]
[1728019878689,0.03501224,61305.0,61304.0,0.17698555]
[1728019880331,0.03501224,61305.0,61304.0,0.17798555]
[1728019880765,0.03501224,61305.0,61304.0,0.17698555]
[1728019880981,0.03501224,61305.0,61304.0,0.17798555]
[1728019881194,0.03500941,61305.0,61304.0,0.17798555]
[1728019881434,0.06058085,61305.0,61304.0,0.17798555]
[1728019882909,0.03500941,61305.0,61304.0,0.17798555]
[1728019885029,0.03496706,61305.0,61304.0,0.17798555]
[1728019885475,0.0349669,61305.0,61304.0,0.17798555]
[1728019888790,0.03499037,61305.0,61304.0,0.17798555]
[1728019890205,0.06056194,61305.0,61304.0,0.17798555]
[1728019890668,0.06056194,61305.0,61304.0,0.01486455]
[1728019890915,0.22367994,61305.0,61304.0,0.01486455]
[1728019891393,0.22367994,61305.0,61304.0,0.002638]
[1728019891640,0.223681,61305.0,61304.0,0.01257532]
[1728019891889,0.223681,61305.0,61304.0,0.01257852]
[1728019893559,0.301781,61305.0,61304.0,0.01257852]
[1728019893773,0.301781,61305.0,61304.0,0.002638]
[1728019894013,0.060563,61305.0,61304.0,0.002638]
[1728019894481,0.060563,61305.0,61304.0,0.01258451]
[1728019894697,0.03499143,61305.0,61304.0,0.01258451]
[1728019897062,0.03499143,61305.0,61304.0,0.17570551]
[1728019897748,0.06056322,61305.0,61304.0,0.17570551]
[1728019897988,0.02639079,61305.0,61304.0,0.17570551]
[1728019898240,0.06062239,61305.0,61304.0,0.17570551]
[1728019898711,0.06062239,61305.0,61304.0,0.01258451]
[1728019899674,0.06062239,61305.0,61304.0,0.01158451]
[1728019899899,0.06162239,61305.0,61304.0,0.01158451]
[1728019900141,0.06362239,61305.0,61304.0,0.01158451]
[1728019900373,0.06362239,61305.0,61304.0,0.17470551]
[1728019901309,0.04664444,61305.0,61304.0,0.17470551]
[1728019901559,0.06361975,61305.0,61304.0,0.17470551]
[1728019902427,0.06361975,61305.0,61304.0,0.1693052]
[1728019902652,0.03804796,61305.0,61304.0,0.1693052]
[1728019903147,0.02107265,61305.0,61304.0,0.1693052]
[1728019903878,0.02107265,61305.0,61304.0,0.1709432]
[1728019904569,0.02108417,61305.0,61304.0,0.1709432]
[1728019907417,0.04665653,61305.0,61304.0,0.1709432]
[1728019907894,0.04667365,61305.0,61304.0,0.1709432]
[1728019910791,0.04667365,61305.0,61304.0,0.01283662]
[1728019911025,0.0466765,61305.0,61304.0,0.01283662]
[1728019911263,0.2097945,61305.0,61304.0,0.01283662]
[1728019911487,0.18422214,61305.0,61304.0,0.01283662]
[1728019911717,0.23322229,61305.0,61304.0,0.001638]
[1728019912173,0.23322229,61305.0,61304.0,0.01284638]
[1728019912402,0.23322229,61305.0,61304.0,0.001638]
[1728019912867,0.23322229,61305.0,61304.0,0.01284638]
[1728019913101,0.23322229,61305.0,61304.0,0.001638]
[1728019913330,0.23322229,61305.0,61304.0,0.01284638]
[1728019913566,0.23322229,61305.0,61304.0,0.001638]
[1728019913837,0.23322229,61305.0,61304.0,0.01284638]
[1728019914389,0.23323526,61305.0,61304.0,0.01284638]
[1728019914606,0.2332323,61305.0,61304.0,0.01284638]
[1728019914871,0.25880846,61305.0,61304.0,0.01284638]
[1728019915596,0.20981127,61305.0,61304.0,0.01284638]
[1728019917284,0.18423793,61305.0,61304.0,0.01284638]
[1728019920392,0.20981125,61305.0,61304.0,0.001638]
[1728019920628,0.163126,61303.0,61299.0,0.22992363]
[1728019920843,0.326244,61304.0,61299.0,0.39305663]
[1728019920844,0.18043902,61302.0,61299.0,0.39305663]
[1728019921060,0.01731302,61301.0,61300.0,0.01122593]
[1728019921515,0.18044202,61301.0,61300.0,0.01122593]
[1728019921948,0.18044202,61301.0,61299.0,0.001]
[1728019921949,0.163132,61300.0,61299.0,0.001]
[1728019922169,0.163135,61299.0,61295.0,0.38511985]
[1728019922404,0.12463806,61297.0,61294.0,0.0912]
[1728019922632,0.163145,61295.0,61294.0,0.0912]
[1728019922875,0.163145,61295.0,61293.0,0.0816]
[1728019922876,0.01731302,61295.0,61293.0,0.0816]
[1728019923103,0.04288873,61295.0,61293.0,0.0816]
[1728019923328,0.01731302,61294.0,61293.0,0.24475]
[1728019924451,0.01731302,61294.0,61293.0,0.0866]
[1728019924677,0.01831302,61294.0,61293.0,0.007]
[1728019925110,0.01831302,61294.0,61293.0,0.17015]
[1728019925853,0.36943599,61294.0,61293.0,0.007]
[1728019926116,0.36943599,61294.0,61293.0,0.013]
[1728019926117,0.30709908,61294.0,61293.0,0.013]
[1728019926346,0.38167002,61294.0,61293.0,0.013]
[1728019926592,0.33267985,61294.0,61293.0,0.013]
[1728019926829,0.163161,61289.0,61286.0,0.0934]
[1728019927078,0.01731541,61288.0,61286.0,0.0934]
[1728019927321,0.01731541,61287.0,61286.0,0.0934]
[1728019928008,0.04289409,61287.0,61286.0,0.0934]
[1728019928232,0.04289409,61287.0,61286.0,0.10464746]
[1728019928684,0.04289409,61287.0,61286.0,0.26781646]
[1728019929126,0.04289409,61287.0,61286.0,0.17441646]
[1728019929348,0.02557868,61287.0,61286.0,0.26781646]
[1728019929565,0.04286382,61287.0,61286.0,0.26781646]
[1728019930016,0.04286382,61287.0,61286.0,0.27081646]
[1728019933149,0.0428561,61287.0,61286.0,0.27081646]
[1728019935770,0.02557868,61287.0,61286.0,0.27081646]
[1728019936011,0.0428512,61287.0,61286.0,0.27081646]
[1728019937384,0.01727252,61287.0,61286.0,0.27081646]
[1728019939661,0.01727252,61287.0,61286.0,0.27245446]
[1728019940296,0.04285116,61287.0,61286.0,0.27245446]
[1728019942140,0.02557864,61287.0,61286.0,0.27245446]
[1728019942372,0.04285875,61287.0,61286.0,0.27245446]
[1728019943655,0.01728011,61287.0,61286.0,0.27245446]
[1728019944375,0.04285872,61287.0,61286.0,0.27245446]
[1728019945424,0.04286864,61287.0,61286.0,0.27245446]
[1728019947357,0.01729003,61287.0,61286.0,0.27245446]
[1728019948808,0.16315,61293.0,61286.0,0.10928546]
[1728019949073,0.326291,61295.0,61286.0,0.10928546]
[1728019949348,0.01724408,61287.0,61286.0,0.261207]
[1728019949583,0.01724408,61287.0,61286.0,0.587542]
[1728019949818,0.01724408,61287.0,61286.0,0.6801791]
[1728019950055,0.04282185,61287.0,61286.0,0.6801791]
[1728019950284,0.04282185,61287.0,61286.0,0.6791791]
[1728019950528,0.04282185,61287.0,61286.0,0.6781791]
[1728019951465,0.04282185,61287.0,61286.0,0.6791791]
[1728019951914,0.01724408,61287.0,61286.0,0.6791791]
[1728019952440,0.01724408,61287.0,61286.0,0.6811791]
[1728019953640,0.163964,61295.0,61286.0,0.1916751]
[1728019953882,0.163149,61294.0,61289.0,0.489477]
[1728019954110,0.163149,61294.0,61290.0,0.163157]
[1728019954329,0.02557734,61293.0,61290.0,0.17447651]
[1728019954996,0.02557734,61293.0,61291.0,0.163155]
[1728019955466,0.02557734,61293.0,61292.0,0.01131644]
[1728019956207,0.02557734,61293.0,61290.0,0.163157]
[1728019956441,0.02957734,61293.0,61292.0,0.01131644]
[1728019956684,0.03557734,61293.0,61291.0,0.01231797]
[1728019956902,0.02957734,61293.0,61290.0,0.163157]
[1728019957093,0.02557734,61293.0,61292.0,0.01131644]
[1728019957332,0.006,61293.0,61292.0,0.001]
[1728019957464,0.006,61293.0,61292.0,0.17546944]
[1728019958115,0.006,61293.0,61292.0,0.01231644]
[1728019958359,0.16915,61293.0,61292.0,0.01231644]
[1728019958547,0.01,61293.0,61292.0,0.01231644]
[1728019959117,0.17315,61293.0,61292.0,0.01231644]
[1728019959594,0.17315,61293.0,61292.0,0.001]
[1728019959844,0.29778806,61293.0,61292.0,0.001]
[1728019960558,0.39368806,61293.0,61292.0,0.001]
[1728019962431,0.52310957,61293.0,61292.0,0.001]
[1728019962648,0.62394931,61293.0,61292.0,0.001]
[1728019963205,0.62394931,61293.0,61276.0,0.23121979]
[1728019963206,0.163192,61278.0,61276.0,0.23121979]
[1728019963444,0.12463806,61277.0,61276.0,0.23121979]
[1728019963694,0.28783106,61277.0,61276.0,0.23121979]
[1728019963953,0.31341466,61277.0,61273.0,0.242503]
[1728019964407,0.15022166,61277.0,61274.0,0.1632]
[1728019964890,0.0255836,61277.0,61274.0,0.326402]
[1728019965345,0.0255836,61277.0,61275.0,0.163198]
[1728019965586,0.0255836,61277.0,61276.0,0.163196]
[1728019965844,0.0255836,61277.0,61276.0,0.339396]
[1728019966283,0.0255836,61277.0,61276.0,0.340215]
[1728019967220,0.16318,61282.0,61278.0,0.163189]
[1728019967450,0.24520421,61285.0,61280.0,0.163182]
[1728019967451,0.163175,61284.0,61280.0,0.163182]
[1728019967674,0.163181,61282.0,61279.0,0.0793]
[1728019969501,0.003,61282.0,61279.0,0.0793]
[1728019969722,0.007,61282.0,61279.0,0.242487]
[1728019969989,0.007,61282.0,61279.0,0.0793]
[1728019969990,0.163183,61281.0,61279.0,0.0793]
[1728019970210,0.16618,61282.0,61279.0,0.0793]
[1728019970428,0.16918,61282.0,61279.0,0.0793]
[1728019970640,0.16318,61282.0,61279.0,0.0793]
[1728019970859,0.16718,61282.0,61279.0,0.0793]
[1728019971108,0.16918,61282.0,61279.0,0.0793]
[1728019971540,0.16718,61282.0,61279.0,0.0793]
[1728019971760,0.17018,61282.0,61279.0,0.0793]
[1728019972007,0.163182,61281.0,61279.0,0.0793]
[1728019973155,0.163182,61281.0,61280.0,0.01140777]
[1728019973631,0.1917648,61281.0,61280.0,0.01140777]
[1728019974076,0.1937648,61281.0,61280.0,0.01140777]
[1728019974550,0.1917648,61281.0,61280.0,0.01140777]
[1728019974771,0.1937648,61281.0,61280.0,0.01140777]
[1728019975700,0.1907648,61281.0,61280.0,0.01140777]
[1728019976156,0.1937648,61281.0,61280.0,0.01140777]
[1728019977305,0.005,61281.0,61280.0,0.01140777]
[1728019978243,0.005,61281.0,61280.0,0.01222677]
[1728019978470,0.168182,61281.0,61280.0,0.01222677]
[1728019978922,0.005,61281.0,61280.0,0.01222677]
[1728019979603,0.005,61281.0,61280.0,0.10652677]
[1728019979834,0.005,61281.0,61280.0,0.26971177]
[1728019980312,0.03058242,61281.0,61280.0,0.26971177]
[1728019980967,0.02858242,61281.0,61280.0,0.26971177]
[1728019981192,0.02958242,61281.0,61280.0,0.26971177]
[1728019981422,0.02958242,61281.0,61280.0,0.34691177]
[1728019981648,0.003,61281.0,61280.0,0.34691177]
[1728019982543,0.1,61291.0,61287.0,0.1715]
[1728019982771,0.163161,61289.0,61287.0,0.1715]
[1728019982992,0.163158,61290.0,61288.0,0.01139537]
[1728019983448,0.489475,61290.0,61288.0,0.01139537]
[1728019983662,0.163161,61289.0,61288.0,0.01139537]
[1728019983881,0.167161,61289.0,61288.0,0.01139537]
[1728019984315,0.163164,61288.0,61287.0,0.1715]
[1728019985279,0.331317,61290.0,61287.0,0.334664]
[1728019985280,0.005,61290.0,61287.0,0.334664]
[1728019985592,0.011,61290.0,61287.0,0.334664]
[1728019985826,0.163163,61289.0,61287.0,0.1715]
[1728019986274,0.167164,61288.0,61287.0,0.1715]
[1728019986504,0.166164,61288.0,61287.0,0.1715]
[1728019986950,0.163164,61288.0,61287.0,0.1715]
[1728019987853,0.009,61289.0,61287.0,0.1715]
[1728019988306,0.005,61289.0,61288.0,0.01139149]
[1728019988799,0.02558127,61290.0,61288.0,0.01139149]
[1728019989247,0.02558127,61290.0,61287.0,0.32951527]
[1728019989472,0.02558127,61290.0,61289.0,0.00996602]
[1728019989701,0.163161,61289.0,61288.0,0.00996756]
[1728019989927,0.163161,61289.0,61287.0,0.16635127]
[1728019990152,0.005,61289.0,61288.0,0.163164]
[1728019990420,0.1,61291.0,61288.0,0.163164]
[1728019990646,0.006,61290.0,61287.0,0.16635127]
[1728019990878,0.001638,61289.0,61287.0,0.32951627]
[1728019991118,0.001638,61289.0,61288.0,0.163164]
[1728019991376,0.005638,61289.0,61288.0,0.163164]
[1728019991832,0.005638,61289.0,61288.0,0.263064]
[1728019992300,0.006638,61289.0,61288.0,0.263064]
[1728019992542,0.02721898,61289.0,61288.0,0.263064]
[1728019992769,0.02721898,61289.0,61286.0,0.326338]
[1728019992770,0.02821898,61289.0,61286.0,0.326338]
[1728019993040,0.02821898,61289.0,61286.0,0.163168]
[1728019993505,0.03121898,61289.0,61286.0,0.163168]
[1728019993742,0.03021898,61289.0,61286.0,0.163168]
[1728019993967,0.02721898,61289.0,61286.0,0.163168]
[1728019994193,0.02821898,61289.0,61288.0,0.163164]
[1728019995157,0.02821898,61289.0,61288.0,0.263064]
[1728019995413,0.02721898,61289.0,61288.0,0.263064]
[1728019995697,0.02921898,61289.0,61288.0,0.263064]
[1728019996152,0.03021898,61289.0,61288.0,0.263064]
[1728019996611,0.03021898,61289.0,61288.0,0.344764]
[1728019996848,0.03021898,61289.0,61288.0,0.35471828]
[1728019997078,0.004638,61289.0,61288.0,0.35471828]
[1728020000241,0.003638,61289.0,61288.0,0.35471828]
[1728020000471,0.02921799,61289.0,61288.0,0.35571828]
[1728020000967,0.02921799,61289.0,61288.0,0.35471828]
[1728020001190,0.02721799,61289.0,61288.0,0.35471828]
[1728020001891,0.02721799,61289.0,61288.0,0.35771828]
[1728020004176,0.02721799,61289.0,61288.0,0.35471828]
[1728020004644,0.02721799,61289.0,61288.0,0.35553728]
[1728020005117,0.02821799,61289.0,61288.0,0.35553728]
[1728020005825,0.02821799,61289.0,61288.0,0.17393728]
[1728020006515,0.002638,61289.0,61288.0,0.17393728]
[1728020009449,0.0200333,61289.0,61288.0,0.17393728]
[1728020009930,0.04561286,61289.0,61288.0,0.17393728]
[1728020010146,0.0200333,61289.0,61288.0,0.17393728]
[1728020011598,0.02003745,61289.0,61288.0,0.17393728]
[1728020011811,0.01903745,61289.0,61288.0,0.17393728]
[1728020012228,0.0482561,61289.0,61288.0,0.01077328]
[1728020012480,0.01903745,61289.0,61288.0,0.01077328]
[1728020013152,0.04461731,61289.0,61288.0,0.01077328]
[1728020013391,0.04461731,61289.0,61288.0,0.17393728]
[1728020013618,0.04461731,61289.0,61288.0,0.27383728]
[1728020013871,0.04461731,61289.0,61288.0,0.35553728]
[1728020014361,0.02721786,61289.0,61288.0,0.35553728]
[1728020014589,0.04457949,61289.0,61288.0,0.35553728]
[1728020014834,0.04557949,61289.0,61288.0,0.35553728]
[1728020015059,0.04457949,61289.0,61288.0,0.35553728]
[1728020015975,0.04457949,61289.0,61288.0,0.35653728]
[1728020016498,0.04457949,61289.0,61288.0,0.35553728]
[1728020016974,0.04457949,61289.0,61288.0,0.35853728]
[1728020017711,0.02721786,61289.0,61288.0,0.35853728]
[1728020017929,0.04460311,61289.0,61288.0,0.35853728]
[1728020021000,0.02721786,61289.0,61288.0,0.35853728]
[1728020021291,0.04454104,61289.0,61288.0,0.35853728]
[1728020022233,0.01896118,61289.0,61288.0,0.35853728]
[1728020027630,0.01893872,61289.0,61288.0,0.35853728]
[1728020029639,0.04451691,61289.0,61288.0,0.35853728]
[1728020029857,0.01893872,61289.0,61288.0,0.35853728]
[1728020031059,0.01893904,61289.0,61288.0,0.35853728]
[1728020031270,0.001638,61289.0,61288.0,0.35853728]
[1728020031487,0.01893897,61289.0,61288.0,0.35853728]
[1728020032876,0.04451713,61289.0,61288.0,0.35853728]
[1728020034261,0.04452462,61289.0,61288.0,0.35853728]
[1728020037534,0.001638,61289.0,61288.0,0.35853728]
[1728020037771,0.01894594,61289.0,61288.0,0.35853728]
[1728020040764,0.02721617,61289.0,61288.0,0.35853728]
[1728020041023,0.04451283,61289.0,61288.0,0.35853728]
[1728020041922,0.06142934,61289.0,61288.0,0.35853728]
[1728020043299,0.06151895,61289.0,61288.0,0.35853728]
[1728020045874,0.04464763,61289.0,61288.0,0.35853728]
[1728020046790,0.06151223,61289.0,61288.0,0.35853728]
[1728020047533,0.03593406,61289.0,61288.0,0.35853728]
[1728020049610,0.001638,61289.0,61288.0,0.35853728]
[1728020049862,0.03593661,61289.0,61288.0,0.35853728]
[1728020051901,0.06151502,61289.0,61288.0,0.35853728]
[1728020052869,0.06151102,61289.0,61288.0,0.35853728]
[1728020056058,0.02721641,61289.0,61288.0,0.35853728]
[1728020056286,0.04464602,61289.0,61288.0,0.35853728]
[1728020056531,0.06151877,61289.0,61288.0,0.35853728]
[1728020056987,0.06151877,61289.0,61288.0,0.35076585]
[1728020057936,0.04464602,61289.0,61288.0,0.35076585]
[1728020058155,0.06150577,61289.0,61288.0,0.35076585]
[1728020059089,0.0615072,61289.0,61288.0,0.35076585]
[1728020059558,0.06150174,61289.0,61288.0,0.35076585]
[1728020061640,0.06150174,61289.0,61288.0,0.16916585]
[1728020062126,0.04464098,61289.0,61288.0,0.01168301]
[1728020062358,0.01906257,61289.0,61288.0,0.01168301]
[1728020062623,0.26022357,61289.0,61288.0,0.01168301]
[1728020062855,0.26023287,61289.0,61288.0,0.00868301]
[1728020063083,0.163164,61288.0,61283.0,0.163175]
[1728020063317,0.03437383,61287.0,61284.0,0.163173]
[1728020063558,0.03437383,61286.0,61284.0,0.17186583]
[1728020063790,0.080638,61289.0,61284.0,0.17186583]
[1728020063791,0.01749961,61285.0,61284.0,0.00869283]
[1728020064015,0.01749961,61285.0,61284.0,0.17186683]
[1728020064016,0.03442899,61285.0,61284.0,0.17186683]
[1728020064247,0.03442899,61285.0,61284.0,0.00869283]
[1728020064479,0.03442899,61285.0,61279.0,0.326374]
[1728020064720,0.253264,61288.0,61284.0,0.17186583]
[1728020064957,0.03437118,61287.0,61284.0,0.163173]
[1728020065209,0.253264,61288.0,61282.0,0.326359]
[1728020065210,0.03437118,61286.0,61285.0,0.1718623]
[1728020065915,0.03436949,61286.0,61285.0,0.0086913]
[1728020066380,0.03436949,61286.0,61285.0,0.1718633]
[1728020067063,0.01747363,61286.0,61285.0,0.1718633]
[1728020068698,0.01847363,61286.0,61285.0,0.1718633]
[1728020069170,0.01742036,61286.0,61285.0,0.1718633]
[1728020069396,0.01842036,61286.0,61285.0,0.1718633]
[1728020069624,0.01842052,61286.0,61285.0,0.1718633]
[1728020069882,0.02657988,61286.0,61285.0,0.1718633]
[1728020070118,0.04399952,61286.0,61285.0,0.1718633]
[1728020070567,0.04599952,61286.0,61285.0,0.1718633]
[1728020070798,0.04399952,61286.0,61285.0,0.1718633]
[1728020071043,0.04299952,61286.0,61285.0,0.1718633]
[1728020071284,0.04399952,61286.0,61285.0,0.1718633]
[1728020072451,0.02657988,61286.0,61285.0,0.1718633]
[1728020072681,0.04398534,61286.0,61285.0,0.1718633]
[1728020074945,0.04298534,61286.0,61285.0,0.1718633]
[1728020075137,0.04298534,61286.0,61285.0,0.1726823]
[1728020075369,0.04398534,61286.0,61285.0,0.1726823]
[1728020076132,0.01840546,61286.0,61285.0,0.1726823]
[1728020077521,0.01740546,61286.0,61285.0,0.1726823]
[1728020077749,0.01740546,61286.0,61285.0,0.1736823]
[1728020078656,0.001638,61288.0,61286.0,0.163166]
[1728020078891,0.01738688,61287.0,61286.0,0.163166]
[1728020079360,0.04296643,61287.0,61286.0,0.163166]
[1728020080492,0.01738688,61287.0,61286.0,0.163166]
[1728020081617,0.01838688,61287.0,61286.0,0.163166]
[1728020083746,0.04396639,61287.0,61286.0,0.163166]
[1728020084907,0.04296639,61287.0,61286.0,0.163166]
[1728020085165,0.04396639,61287.0,61286.0,0.163166]
[1728020085377,0.04397476,61287.0,61286.0,0.163166]
[1728020085599,0.04397476,61287.0,61285.0,0.000819]
[1728020085828,0.02657951,61287.0,61286.0,0.163169]
[1728020086070,0.04397444,61287.0,61286.0,0.163169]
[1728020086275,0.01839493,61287.0,61286.0,0.163169]
[1728020089602,0.04397427,61287.0,61286.0,0.163169]
[1728020090743,0.04397427,61287.0,61285.0,0.163989]
[1728020090994,0.01739493,61286.0,61285.0,0.163989]
[1728020091911,0.01739307,61286.0,61285.0,0.163989]
[1728020092125,0.01939307,61286.0,61285.0,0.163989]
[1728020092584,0.01739307,61286.0,61285.0,0.163989]
[1728020092889,0.01939307,61286.0,61285.0,0.163989]
[1728020093352,0.01939307,61286.0,61285.0,0.17161158]
[1728020093819,0.02039307,61286.0,61285.0,0.17161158]
[1728020098128,0.01839307,61286.0,61285.0,0.17161158]
[1728020098394,0.01838286,61286.0,61285.0,0.17161158]
[1728020098877,0.001,61286.0,61285.0,0.17161158]
[1728020099105,0.01838692,61286.0,61285.0,0.17161158]
[1728020099295,0.01738692,61286.0,61285.0,0.17161158]
[1728020099578,0.01738692,61286.0,61285.0,0.17261158]
[1728020101149,0.01738692,61286.0,61285.0,0.00944158]
[1728020101393,0.01738692,61286.0,61285.0,0.17261358]
[1728020102106,0.01738692,61286.0,61285.0,0.00844158]
[1728020102338,0.01938692,61286.0,61285.0,0.17161358]
[1728020102566,0.02238692,61286.0,61285.0,0.17161358]
[1728020102797,0.02038692,61286.0,61285.0,0.00844158]
[1728020103288,0.02238692,61286.0,61285.0,0.17161358]
[1728020103817,0.002,61286.0,61285.0,0.17161358]
[1728020104062,0.02237663,61286.0,61285.0,0.17161358]
[1728020105502,0.02237663,61286.0,61285.0,0.00844158]
[1728020107249,0.02237663,61286.0,61285.0,0.34711358]
[1728020107250,0.02237579,61286.0,61285.0,0.34711358]
[1728020111056,0.0479555,61286.0,61285.0,0.34711358]
[1728020112202,0.02237579,61286.0,61285.0,0.34711358]
[1728020113488,0.005,61286.0,61285.0,0.34711358]
[1728020113659,0.02028237,61286.0,61285.0,0.34711358]
[1728020114325,0.01728237,61286.0,61285.0,0.34711358]
[1728020115039,0.01828237,61286.0,61285.0,0.34711358]
[1728020118862,0.01728237,61286.0,61285.0,0.34811358]
[1728020119320,0.01728237,61286.0,61285.0,0.34711358]
[1728020119547,0.04286202,61286.0,61285.0,0.34811358]
[1728020120008,0.04281358,61286.0,61285.0,0.34811358]
[1728020123227,0.02557965,61286.0,61285.0,0.34811358]
[1728020123462,0.04280922,61286.0,61285.0,0.34811358]
[1728020126404,0.02557965,61286.0,61285.0,0.34811358]
[1728020126646,0.06009725,61286.0,61285.0,0.34811358]
[1728020129864,0.06013123,61286.0,61285.0,0.34811358]
[1728020133125,0.04283845,61286.0,61285.0,0.34811358]
[1728020133367,0.06012558,61286.0,61285.0,0.34811358]
[1728020134070,0.06012558,61286.0,61285.0,0.17261358]
[1728020134780,0.04286678,61286.0,61285.0,0.17261358]
[1728020135231,0.04286678,61286.0,61280.0,0.091019]
[1728020135232,0.163173,61285.0,61281.0,0.14832996]
[1728020135453,0.01728713,61284.0,61281.0,0.14832996]
[1728020135684,0.01728713,61283.0,61281.0,0.14832996]